Workbook

Sheet Расчеты для Джипси
A1: 78
A2: 45
A3: 30
A5: Турнир 1
A6: 0.54 | B6: 27 | C6: =A6*B6 -> 14.58 | D6: =(1-A6)*C7 -> 1.483776 | E6: =SUM(C6:D6) -> 16.063776
A7: 0.32 | C7: =C8*A7 -> 3.2256
A8: 0.18 | B8: 56 | C8: =A8*B8 -> 10.08
A10: Турнир 2
A11: 0.58 | B11: 29 | C11: =A11*B11 -> 16.82 | D11: =(1-A11)*C12 -> 2.72805204 | E11: =SUM(C11:D11) -> 19.54805204
A12: 0.29 | B12: =SUM(C13:C16) -> 22.3978 | C12: 6.495362
A13: 0.06 | B13: 5 | C13: 0.3
A14: 0.19 | B14: =C17+C18 -> 12.62 | C14: 2.3978
A15: 0.37 | B15: 6 | C15: 2.22
A16: 0.38 | B16: 46 | C16: 17.48
A17: 0.15 | B17: 20 | C17: 3
A18: 0.26 | B18: 37 | C18: =B18*A18 -> 9.62
A20: Турнир 3
A22: 0.47 | B22: 10 | C22: =A22*C23 -> 12.5396 | D22: =(1-A22)*B22 -> 5.3 | E22: =SUM(C22:D22) -> 17.8396
A23: 0.58 | B23: 46 | C23: =B23*A23 -> 26.68
A25: Турнир 4
A28: 0.37 | B28: 46 | C28: =B28*A28 -> 17.02 | E28: =C28 -> 17.02
E31: =(AVERAGE(E6:E28)-20)/20 -> -0.1191071495
A34: Все пуши и фолды за 5 демонстрационных турниров
A36: Моя рука | B36: Решение | C36: Опп-ов в игре | D36: Шансы на лучшую руку | E36: Шансы на 88+;Аjo+ у опп-ов | F36: Верное решение | G36: У опп-ов была рука 88+;Аjo+
A37: A9o | B37: fold | C37: 6 | D37: 0.54 | E37: 0.34 | F37: да | G37: да | H37: турнир 1
A38: TT | B38: push | C38: 5 | D38: 0.91 | E38: 0.3 | F38: да | G38: да
A39: А4о | B39: fold | C39: 3 | D39: 0.62 | E39: 0.19 | F39: не знаем | G39: не знаем
A40: A6s | B40: push | C40: 2 | D40: 0.76 | E40: 0.13 | F40: нет | G40: да
A41: Kqo | B41: fold | C41: 5 | D41: 0.31 | E41: 0.3 | F41: не знаем | G41: не знаем
A42: A8o | B42: push | C42: 2 | D42: 0.8 | E42: 0.13 | F42: да | G42: не знаем
A43: K7o | B43: fold | C43: 1 | D43: 0.74 | E43: 0.07 | F43: не знаем | G43: не знаем
A44: A3o | B44: push | C44: 1 | D44: 0.84 | E44: 0.07 | F44: да | G44: не знаем
A45: 77 | B45: fold | C45: 2 | D45: 0.93 | E45: 0.13 | F45: да | G45: да
A46: 95о | B46: push | C46: 3 | D46: 0.02 | E46: 0.19 | F46: да | G46: не знаем
A47: QQ | B47: push | C47: 3 | D47: 0.97 | E47: 0.19 | F47: нет | G47: да
A48: A8o | B48: fold | C48: 5 | D48: 0.57 | E48: 0.3 | F48: не знаем | G48: не знаем | H48: турнир 2
A49: A7o | B49: push | C49: 6 | D49: 0.47 | E49: 0.34 | F49: да | G49: нет
A50: 44 | B50: fold | C50: 6 | D50: 0.74 | E50: 0.34 | F50: не знаем | G50: не знаем
A51: А5о | B51: push | C51: 5 | D51: 0.48 | E51: 0.3 | F51: нет | G51: да
A52: TT | B52: push | C52: 4 | D52: 0.92 | E52: 0.25 | F52: да | G52: да
A53: Kjo | B53: fold | C53: 4 | D53: 0.37 | E53: 0.25 | F53: да | G53: да
A54: Ato | B54: push | C54: 1 | D54: 0.91 | E54: 0.07 | F54: да | G54: не знаем
A55: A5o | B55: push | C55: 2 | D55: 0.74 | E55: 0.13 | F55: нет | G55: нет
A56: Aqo | B56: push | C56: 6 | D56: 0.65 | E56: 0.34 | F56: да | G56: не знаем | H56: турнир 3
A57: A8o | B57: fold | C57: 2 | D57: 0.8 | E57: 0.13 | F57: не знаем | G57: не знаем
A58: 33 | B58: push | C58: 3 | D58: 0.85 | E58: 0.19 | F58: да | G58: нет
A59: 44 | B59: fold | C59: 3 | D59: 0.86 | E59: 0.19 | F59: не знаем | G59: не знаем
A60: A8o | B60: fold | C60: 2 | D60: 0.8 | E60: 0.13 | F60: не знаем | G60: не знаем
A61: Q9o | B61: push | C61: 2 | D61: 0.4 | E61: 0.13 | F61: да | G61: нет
A62: KJs | B62: fold | C62: 2 | D62: 0.61 | E62: 0.13 | F62: не знаем | G62: не знаем | H62: турнир 4
A63: KJs | B63: push | C63: 2 | D63: 0.61 | E63: 0.13 | F63: да | G63: не знаем
A64: Ako | B64: fold | C64: 5 | D64: 0.74 | E64: 0.3 | F64: не знаем | G64: не знаем
A65: A6o | B65: push | C65: 1 | D65: 0.87 | E65: 0.07 | F65: да | G65: не знаем
A66: 88 | B66: push | C66: 2 | D66: 0.94 | E66: 0.13 | F66: да | G66: нет
A67: 99 | B67: push | C67: 8 | D67: 0.82 | E67: 0.43 | F67: да | G67: не знаем | H67: турнир 5
A68: A5o | B68: fold | C68: 5 | D68: 0.48 | E68: 0.3 | F68: не знаем | G68: не знаем
A69: KQo | B69: fold | C69: 6 | D69: 0.24 | E69: 0.34 | F69: не знаем | G69: не знаем
A70: A5s | B70: push | C70: 7 | D70: 0.36 | E70: 0.39 | F70: да | G70: не знаем
A71: A9o | B71: fold | C71: 3 | D71: 0.73 | E71: 0.19 | F71: не знаем | G71: не знаем
A72: 93o | B72: push | C72: 2 | D72: 0.07 | E72: 0.13 | F72: да | G72: не знаем
A73: KJo | B73: fold | C73: 3 | D73: 0.48 | E73: 0.19 | F73: не знаем | G73: не знаем
A74: ATo | B74: push | C74: 1 | D74: 0.91 | E74: 0.07 | F74: да | G74: не знаем
A75: 88 | B75: push | C75: 4 | D75: 0.89 | E75: 0.25 | F75: да | G75: не знаем
A76: KJo | B76: fold | C76: 4 | D76: 0.37 | E76: 0.25 | F76: да | G76: да
A77: A3o | B77: push | C77: 4 | D77: 0.51 | E77: 0.25 | F77: да | G77: нет
A84: Я сделал 23 пуша, из них попал в руку лучше 4 раза. То есть 83% случаев я выставился верно
A85: При этом, шансы на лучшую руку против соперников на этих пушах в среднем были - 68%
A87: То есть, я попал в 9,7% "удачи" на своих пушах
A89: Если предположить, что мои соперники никогда не скинули бы 88+;Ajo+, то средние шансы
A90: не встретить такую руку у них на моем пуше без премиум руки - 83%. Я же не встретил - в 88%.
A92: Там, где я решил скинуть сильную руку, я должен был встретить у соперников руку лучше
A93: в 23% случаев в среднем. Я же встретил в 22% случаев. При том, что в остальных случаях я не
A94: видел карт игроков.
A96: Когда я пушу - я встречаю премиум руку в 22% случаев
A97: Когда я делаю фолд сильной руки - то встретил бы ее у оппонентов в 22% случаев при том
A98: что я увидел только 4 руки из 18.
H100: Или луше | L100: Доля от пара+
A101: пара или лучше | D101: 0.3244 | G101: пара или лучше | H101: =D101 -> 0.3244 | L101: =H101/$H$101 -> 1
A102: пара к одной из карт | D102: 0.29
A103: топ пара | D103: 0.141 | G103: топ пара или лучше | H103: =D103+D105+D106+D107 -> 0.1754 | L103: =H103/$H$101 -> 0.5406905055
A105: две пары | D105: 0.02 | G105: два пары или лучше | H105: =D105+D106+D107 -> 0.0344 | L105: =H105/$H$101 -> 0.1060419236
A106: трипс | D106: 0.0135 | G106: трипс или лучше | H106: =D106+D107 -> 0.0144 | L106: =H106/$H$101 -> 0.04438964242
A107: фул хауз | D107: 0.0009 | G107: фулхауз | H107: =D107 -> 0.0009 | L107: =H107/$H$101 -> 0.002774352651
A109: сет или лучше | D109: 0.117
A111: флэш | D111: 0.0084
A113: Все рейзы, пуши и фолды по демо-турнирам новой волны
A115: Моя рука | B115: Решение | C115: Опп-ов в игре | D115: Рука на флопе | E115: Префлоп вабанк | F115: Шансы на лучшую руку | G115: Шансы на постфлоп комбинацию | H115: Ожидаемые шансы на ПФ комб | I115: Шансы на 88+;Аjo+ у опп-ов | J115: Успешный стил/успешный вабанк/корректный фолд | K115: У опп-ов была рука 88+;Аjo+
A116: Q2o | B116: fold | D116: младшая пара | E116: no | G116: 0.324 | H116: 0.3244 | K116: не знаем | L116: турнир 1
A117: K2s | B117: limp | D117: nothing | E117: no | K117: не знаем | L117: турнир 1
A118: 54s | B118: fold | D118: младшая пара | E118: no | G118: 0.324 | H118: 0.3244 | K118: не знаем | L118: турнир 1
A119: T8o | B119: fold | D119: пусто | E119: no | H119: 0.3244 | K119: нет | L119: турнир 1
A120: T9o | B120: SB limp | D120: FD | E120: no | K120: нет | L120: турнир 1
A121: Kto | B121: limp | D121: StD | E121: no | K121: нет | L121: турнир 1
A122: 44 | B122: fold | C122: 4 | E122: yes | J122: не знаем | K122: не знаем | L122: турнир 1
A123: K8o | B123: fold | D123: топ пара | E123: no | G123: 0.1754 | H123: 0.1754 | K123: не знаем | L123: турнир 1
A124: 53o | B124: fold | D124: пусто | E124: no | H124: 0.3244 | K124: не знаем | L124: турнир 1
A125: Aks | B125: push | C125: 7 | D125: top pair | E125: yes | J125: да | K125: нет | L125: турнир 1
A126: KK | B126: push | C126: 4 | D126: set | E126: yes | H126: 0.117 | J126: да | K126: нет | L126: турнир 1
A127: Ajo | B127: fold | C127: 2 | D127: топ пара | E127: no | G127: 0.1754 | H127: 0.1754 | J127: нет | K127: нет | L127: турнир 1
A128: T5o | B128: fold | D128: вторая пара | E128: no | G128: 0.324 | H128: 0.3244 | K128: не знаем | L128: турнир 1
A129: 75o | B129: fold | D129: пусто | E129: yes | H129: 0.3244 | K129: да | L129: турнир 1
A130: 92s | B130: fold | D130: пусто | E130: no | H130: 0.3244 | K130: не знаем | L130: турнир 1
A131: K5o | B131: fold | D131: пусто | E131: no | H131: 0.3244 | K131: не знаем | L131: турнир 1
A132: A9o | B132: SB limp | C132: 2 | D132: OC | E132: no | J132: не знаем | K132: не знаем | L132: турнир 1
A133: Q8o | B133: fold | D133: пусто | E133: no | H133: 0.3244 | K133: нет | L133: турнир 1
A134: Ajo | B134: raise | C134: 3 | D134: OC | E134: no | J134: нет | K134: нет | L134: турнир 1
A135: Kjo | B135: fold | C135: 4 | E135: no | J135: не знаем | K135: не знаем | L135: турнир 1
A136: Jto | B136: fold | D136: StD | E136: no | H136: 0.3244 | K136: да | L136: турнир 1
A137: J6s | B137: fold | D137: пусто | E137: no | H137: 0.3244 | K137: не знаем | L137: турнир 1
A138: A8o | B138: fold | C138: 3 | D138: 3-ps | E138: no | G138: 0.0144 | H138: 0.0144 | J138: не знаем | K138: не знаем | L138: турнир 1
A139: T8o | B139: SB limp | D139: low pair | E139: no | K139: не знаем | L139: турнир 1
A140: J5o | B140: fold | D140: пусто | E140: no | H140: 0.3244 | K140: да | L140: турнир 1
A141: T7o | B141: raise | C141: 2 | E141: no | J141: да | K141: нет | L141: турнир 1
A142: 65o | B142: fold | D142: StD | E142: no | H142: 0.3244 | K142: не знаем | L142: турнир 1
A143: Q9o | B143: fold | D143: пусто | E143: no | H143: 0.3244 | K143: да | L143: турнир 1
A144: Kjo | B144: fold | C144: 6 | D144: пусто | E144: no | H144: 0.3244 | J144: не знаем | K144: не знаем | L144: турнир 1
A145: K8o | B145: fold | D145: пусто | E145: no | H145: 0.3244 | K145: не знаем | L145: турнир 1
A146: Qto | B146: BB check | D146: low pair | E146: no | K146: не знаем | L146: турнир 1
A147: T8s | B147: fold | D147: OC | E147: yes | H147: 0.3244 | K147: да | L147: турнир 1
A148: A4o | B148: fold | C148: 4 | D148: пусто | E148: no | H148: 0.3244 | J148: да | K148: да | L148: турнир 1
A149: K6o | B149: fold | D149: топ пара | E149: yes | G149: 0.1754 | H149: 0.1754 | K149: нет | L149: турнир 1
A150: 74o | B150: raise | C150: 2 | E150: no | J150: да | K150: нет | L150: турнир 1
A151: Aqs | B151: push | C151: 6 | E151: yes | J151: да | K151: не знаем | L151: турнир 1
A152: 65o | B152: fold | D152: StD | E152: no | H152: 0.3244 | K152: не знаем | L152: турнир 1
A153: Q2s | B153: fold | D153: топ пара | E153: no | G153: 0.1754 | H153: 0.1754 | K153: не знаем | L153: турнир 1
A154: A8o | B154: fold | C154: 3 | D154: топ пара | E154: no | G154: 0.1754 | H154: 0.1754 | J154: нет | K154: нет | L154: турнир 1
A155: Q2o | B155: fold | D155: топ пара | E155: no | G155: 0.1754 | H155: 0.1754 | K155: не знаем | L155: турнир 1
A156: Kts | B156: fold | D156: FD | E156: no | H156: 0.3244 | K156: не знаем | L156: турнир 1
A157: J5o | B157: fold | D157: пусто | E157: no | H157: 0.3244 | K157: не знаем | L157: турнир 1
A158: A5o | B158: fold | C158: 6 | E158: no | J158: не знаем | K158: не знаем | L158: турнир 1
A159: 88 | B159: push | C159: 3 | D159: nothing | E159: yes | H159: 0.117 | J159: нет | K159: да | L159: турнир 1
A160: 54o | B160: fold | D160: младшая пара | E160: no | G160: 0.324 | H160: 0.3244 | K160: не знаем | L160: турнир 2
A161: K4o | B161: fold | D161: младшая пара | E161: no | G161: 0.324 | H161: 0.3244 | K161: нет | L161: турнир 2
A162: A5o | B162: fold | C162: 1 | E162: no | J162: не знаем | K162: не знаем | L162: турнир 2
A163: K5o | B163: fold | D163: топ пара | E163: no | G163: 0.1754 | H163: 0.1754 | K163: не знаем | L163: турнир 2
A164: J6o | B164: fold | D164: вторая пара | E164: no | G164: 0.324 | H164: 0.3244 | K164: да | L164: турнир 2
A165: 98s | B165: raise | C165: 2 | E165: no | J165: да | K165: нет | L165: турнир 2
A166: 42o | B166: fold | D166: пусто | E166: no | H166: 0.3244 | K166: не знаем | L166: турнир 2
A167: T5s | B167: fold | D167: пусто | E167: no | H167: 0.3244 | K167: нет | L167: турнир 2
A168: 64s | B168: call | D168: low pair | E168: no | K168: не знаем | L168: турнир 2
A169: 96o | B169: fold | D169: пусто | E169: no | H169: 0.3244 | K169: не знаем | L169: турнир 2
A170: 42s | B170: fold | D170: StD | E170: no | H170: 0.3244 | K170: нет | L170: турнир 2
A171: K9o | B171: fold | D171: пусто | E171: no | H171: 0.3244 | K171: нет | L171: турнир 2
A172: Q8s | B172: BB check | D172: nothing | E172: no | K172: не знаем | L172: турнир 2
A173: 93o | B173: fold | D173: пусто | E173: no | H173: 0.3244 | K173: нет | L173: турнир 2
A174: 98o | B174: fold | D174: StD | E174: no | H174: 0.3244 | K174: да | L174: турнир 2
A175: A8o | B175: fold | C175: 5 | D175: пусто | E175: no | H175: 0.3244 | J175: не знаем | K175: не знаем | L175: турнир 2
A176: 95o | B176: fold | D176: пусто | E176: no | H176: 0.3244 | K176: не знаем | L176: турнир 2
A177: T4o | B177: fold | D177: пусто | E177: no | H177: 0.3244 | K177: да | L177: турнир 2
A178: K8o | B178: fold | D178: топ пара | E178: no | G178: 0.1754 | H178: 0.1754 | K178: не знаем | L178: турнир 2
A179: 55 | B179: fold | C179: 1 | E179: no | J179: не знаем | K179: не знаем | L179: турнир 2
A180: 73o | B180: fold | D180: пусто | E180: no | H180: 0.3244 | K180: нет | L180: турнир 2
A181: 42o | B181: fold | D181: пусто | E181: no | H181: 0.3244 | K181: не знаем | L181: турнир 2
A182: J4o | B182: fold | D182: пусто | E182: yes | H182: 0.3244 | K182: да | L182: турнир 2
A183: Q4o | B183: fold | D183: пусто | E183: no | H183: 0.3244 | K183: не знаем | L183: турнир 2
A184: T6o | B184: fold | D184: топ пара | E184: no | G184: 0.1754 | H184: 0.1754 | K184: не знаем | L184: турнир 2
A185: Ato | B185: fold | C185: 2 | D185: FD | E185: no | H185: 0.3244 | J185: да | K185: да | L185: турнир 2
A186: K4o | B186: fold | D186: пусто | E186: no | H186: 0.3244 | K186: не знаем | L186: турнир 2
A187: K4o | B187: fold | D187: топ пара | E187: no | G187: 0.1754 | H187: 0.1754 | K187: нет | L187: турнир 2
A188: K2o | B188: fold | D188: топ пара | E188: no | G188: 0.1754 | H188: 0.1754 | K188: не знаем | L188: турнир 2
A189: T5o | B189: fold | D189: пусто | E189: no | H189: 0.3244 | K189: не знаем | L189: турнир 2
A190: J3s | B190: fold | D190: младшая пара | E190: no | G190: 0.324 | H190: 0.3244 | K190: нет | L190: турнир 2
A191: 85o | B191: fold | D191: пусто | E191: no | H191: 0.3244 | K191: нет | L191: турнир 2
A192: A9s | B192: push | C192: 4 | D192: nothing | E192: yes | J192: нет | K192: да | L192: турнир 2
A193: Q9s | B193: limp | D193: nothing | E193: no | K193: нет | L193: турнир 3
A194: A4o | B194: fold | C194: 5 | D194: вторая пара | E194: no | G194: 0.324 | H194: 0.3244 | J194: нет | K194: нет | L194: турнир 3
A195: 72o | B195: fold | D195: младшая пара | E195: no | G195: 0.324 | H195: 0.3244 | K195: да | L195: турнир 3
A196: A8o | B196: fold | C196: 7 | D196: пусто | E196: no | H196: 0.3244 | J196: не знаем | K196: не знаем | L196: турнир 3
A197: Q4o | B197: fold | D197: топ пара | E197: no | G197: 0.1754 | H197: 0.1754 | K197: нет | L197: турнир 3
A198: 65s | B198: SB limp | D198: low pair | E198: no | K198: не знаем | L198: турнир 3
A199: TT | B199: push | C199: 6 | D199: second pair | E199: yes | H199: 0.117 | J199: да | K199: да | L199: турнир 3
A200: 97o | B200: fold | D200: StD | E200: no | H200: 0.3244 | K200: да | L200: турнир 4
A201: Aqo | B201: fold | C201: 5 | D201: OC | E201: no | H201: 0.3244 | J201: не знаем | K201: не знаем | L201: турнир 4
A202: 73o | B202: fold | D202: StD | E202: no | H202: 0.3244 | K202: не знаем | L202: турнир 4
A203: T3s | B203: fold | D203: пусто | E203: no | H203: 0.3244 | K203: нет | L203: турнир 4
A204: Q4o | B204: fold | D204: младшая пара | E204: no | G204: 0.324 | H204: 0.3244 | K204: не знаем | L204: турнир 4
A205: Q5s | B205: fold | D205: пусто | E205: no | H205: 0.3244 | K205: нет | L205: турнир 4
A206: 88 | B206: push-call | C206: 2 | D206: second pair | E206: yes | H206: 0.117 | J206: да | K206: нет | L206: турнир 4
A207: A4o | B207: fold | C207: 2 | D207: топ пара | E207: no | G207: 0.1754 | H207: 0.1754 | J207: не знаем | K207: не знаем | L207: турнир 4
A208: T3o | B208: fold | D208: пусто | E208: no | H208: 0.3244 | K208: да | L208: турнир 4
A209: J8o | B209: fold | D209: пусто | E209: no | H209: 0.3244 | K209: нет | L209: турнир 4
A210: Ajo | B210: fold | C210: 7 | D210: OC | E210: no | H210: 0.3244 | J210: не знаем | K210: не знаем | L210: турнир 4
A211: A6o | B211: BB check | C211: 3 | D211: OC | E211: no | J211: да | K211: да | L211: турнир 4
A212: 74o | B212: SB limp | D212: nothing | E212: no | K212: не знаем | L212: турнир 4
A213: T8o | B213: fold | D213: пусто | E213: no | H213: 0.3244 | K213: да | L213: турнир 4
A214: 87o | B214: call | D214: top pair | E214: no | K214: не знаем | L214: турнир 4
A215: K9s | B215: fold | C215: 5 | D215: топ пара | E215: yes | G215: 0.1754 | H215: 0.1754 | J215: да | K215: нет | L215: турнир 4
A216: Q3o | B216: fold | D216: топ пара | E216: yes | G216: 0.1754 | H216: 0.1754 | K216: нет | L216: турнир 4
A217: 96o | B217: fold | D217: топ пара | E217: no | G217: 0.1754 | H217: 0.1754 | K217: не знаем | L217: турнир 4
A218: 74o | B218: fold | D218: StD | E218: no | H218: 0.3244 | K218: нет | L218: турнир 4
A219: T9o | B219: raise | C219: 4 | D219: nothing | E219: no | J219: нет | K219: нет | L219: турнир 4
A220: 97o | B220: fold | D220: вторая пара | E220: no | G220: 0.324 | H220: 0.3244 | K220: нет | L220: турнир 4
A221: A9o | B221: fold | C221: 7 | D221: пусто | E221: no | H221: 0.3244 | J221: да | K221: да | L221: турнир 4
A222: Ato | B222: call | C222: 2 | D222: nothing | E222: no | J222: да | K222: да | L222: турнир 4
A223: A6o | B223: push | C223: 2 | E223: yes | J223: да | K223: не знаем | L223: турнир 4
A224: J2s | B224: fold | D224: пусто | E224: no | H224: 0.3244 | K224: не знаем | L224: турнир 4
A225: T3o | B225: fold | D225: пусто | E225: yes | H225: 0.3244 | K225: да | L225: турнир 4
A226: 84o | B226: fold | D226: StD | E226: no | H226: 0.3244 | K226: нет | L226: турнир 4
A227: Q9o | B227: fold | D227: топ пара | E227: no | G227: 0.1754 | H227: 0.1754 | K227: не знаем | L227: турнир 4
A228: 92s | B228: fold | D228: младшая пара | E228: no | G228: 0.324 | H228: 0.3244 | K228: да | L228: турнир 4
... 144 more rows
